fUSD/lending_fUSD_20251025
["ID","MTS","AMOUNT","RATE_DAILY","PERIOD"]
[392351728,1761393051641,-500.0,0.00034077,9]
[392351729,1761393051650,-500.0,0.00034077,9]
[392351730,1761393051660,-500.0,0.00034077,9]
[392351731,1761393051670,-500.0,0.00034077,9]
[392351732,1761393051679,-500.0,0.00034077,9]
[392351733,1761393051689,-500.0,0.00034077,9]
[392351734,1761393051698,-500.0,0.00034077,9]
[392351735,1761393051707,-500.0,0.00034077,9]
[392351736,1761393051901,-500.0,0.00034077,9]
[392351737,1761393051940,-500.0,0.00034077,9]
[392351738,1761393051950,-500.0,0.00034077,9]
[392351739,1761393051959,-500.0,0.00034077,9]
[392351740,1761393051968,-500.0,0.00034077,9]
[392351741,1761393051977,-500.0,0.00034077,9]
[392351742,1761393051986,-500.0,0.00034077,9]
[392351743,1761393051995,-500.0,0.00034077,9]
[392351744,1761393052004,-500.0,0.00034077,9]
[392351745,1761393052014,-500.0,0.00034077,9]
[392351746,1761393052023,-591.68028871,0.00034077,9]
[392351747,1761393052032,-500.0,0.00034077,9]
[392351748,1761393052041,-554.24739837,0.00034077,9]
[392351749,1761393052050,-500.0,0.00034077,9]
[392351750,1761393052059,-917.77,0.00034077,9]
[392351751,1761393052068,-500.0,0.00034077,9]
[392351752,1761393052077,-500.0,0.00034077,9]
[392351753,1761393052087,-500.0,0.00034077,9]
[392351754,1761393052096,-500.0,0.00034077,9]
[392351755,1761393052104,-604.52743443,0.00034077,9]
[392351756,1761393052114,-528.16,0.00034077,9]
[392351757,1761393052122,-500.0,0.00034077,9]
[392351758,1761393052132,-500.0,0.00034077,9]
[392351759,1761393052141,-500.0,0.00034077,9]
[392351760,1761393052150,-500.0,0.00034077,9]
[392351761,1761393052161,-500.0,0.00034077,9]
[392351762,1761393052170,-500.0,0.00034077,9]
[392351763,1761393052180,-500.0,0.00034077,9]
[392351764,1761393052189,-500.0,0.00034077,9]
[392351765,1761393052198,-532.31442898,0.00034077,9]
[392351766,1761393052209,-500.0,0.00034077,9]
[392351767,1761393052218,-500.0,0.00034077,9]
[392351768,1761393052227,-500.0,0.00034077,9]
[392351769,1761393052238,-500.0,0.00034077,9]
[392351770,1761393052247,-500.0,0.00034077,9]
[392351771,1761393052257,-500.0,0.00034077,9]
[392351772,1761393052266,-515.35119254,0.00034077,9]
[392351773,1761393052275,-500.0,0.00034077,9]
[392351774,1761393052284,-500.0,0.00034077,9]
[392351775,1761393052293,-282.36368369,0.00034077,9]
[392351776,1761393052302,-500.0,0.00034077,9]
[392351777,1761393052311,-254.60476041,0.00034077,9]
[392351778,1761393052321,-500.0,0.00034077,9]
[392351779,1761393052330,-500.0,0.00034077,9]
[392351780,1761393052339,-500.0,0.00034077,9]
[392351781,1761393052349,-500.0,0.00034077,9]
[392351782,1761393052358,-1247.45687279,0.00034081,2]
[392351783,1761393052368,-397.14585656,0.00034085,2]
[392351784,1761393052378,-22331.04725816,0.00034086,2]
[392351785,1761393052387,-4987.26513412,0.00034088,2]
[392351786,1761393052396,-171.25806606,0.00034088,9]
[392351787,1761393052406,-199.16927698,0.00034088,2]
[392351788,1761393052416,-199.16927698,0.0003409,2]
[392351789,1761393052425,-2910.71035943,0.00034091,2]
[392351790,1761393052434,-2910.71035943,0.00034094,2]
[392351791,1761393052444,-397.14585656,0.00034094,2]
[392351792,1761393052453,-516.61787694,0.00034099,2]
[392351793,1761393052463,-1404.0,0.00034123,5]
[392351794,1761393052473,-1000.0,0.0003413,2]
[392351795,1761393052483,-33148.5234,0.0003413,2]
[392351796,1761393052492,-500.0,0.00034146,7]
[392351797,1761393052501,-163.2,0.00034151,2]
[392351798,1761393052511,-500.0,0.0003418,9]
[392351799,1761393052521,-150.0,0.00034188,2]
[392351800,1761393052531,-150.0,0.00034188,2]
[392351801,1761393052541,-150.0,0.00034188,2]
[392351802,1761393052550,-150.0,0.00034188,2]
[392351803,1761393052559,-150.0,0.00034188,2]
[392351804,1761393052569,-150.0,0.00034188,2]
[392351805,1761393052578,-200.0,0.00034188,2]
[392351806,1761393052587,-150.0,0.00034188,2]
[392351807,1761393052596,-150.0,0.00034188,2]
[392351808,1761393052605,-150.0,0.00034188,2]
[392351809,1761393052615,-150.0,0.00034188,2]
[392351810,1761393052626,-150.0,0.00034188,2]
[392351811,1761393052635,-500.0,0.00034188,2]
[392351812,1761393052644,-150.0,0.00034188,2]
[392351813,1761393052653,-158.96050045,0.00034188,2]
[392351814,1761393052663,-150.0,0.00034188,2]
[392351815,1761393052672,-150.0,0.00034188,2]
[392351816,1761393052681,-150.0,0.00034188,2]
[392351817,1761393052691,-150.0,0.00034188,2]
[392351818,1761393052700,-500.0,0.00034188,2]
[392351819,1761393052709,-500.0,0.00034188,2]
[392351820,1761393052719,-202.84684787,0.00034188,2]
[392351821,1761393052728,-156.68040593,0.00034188,2]
[392351822,1761393052737,-150.0,0.00034188,2]
[392351823,1761393052746,-150.0,0.00034188,2]
[392351824,1761393052755,-500.0,0.00034188,2]
[392351825,1761393052764,-150.0,0.00034188,2]
[392351826,1761393052774,-500.0,0.00034188,2]
[392351827,1761393052783,-150.0,0.00034188,2]
[392351828,1761393052792,-35067.3368655,0.00034189,2]
[392351829,1761393052801,-540.5512374,0.00034189,2]
[392351830,1761393052810,-1286.2078771,0.00034189,2]
[392351831,1761393052820,-500.0,0.00034189,9]
[392351832,1761393052830,-885.44,0.00034189,9]
[392351833,1761393052839,-54818.05118444,0.00034189,2]
[392351834,1761393053184,-2130.48667716,0.00034189,2]
[392351835,1761393053198,-4902.22257948,0.00034189,2]
[392351844,1761393131788,151.0,0.00036672,30]
[392351845,1761393131827,202.77975042,0.00036672,30]
[392351846,1761393132453,151.0,0.00036672,30]
[392351848,1761393141929,250.0,0.00036672,30]
[392351849,1761393142603,250.0,0.00036672,30]
[392351854,1761393175986,153.32,0.00013699,2]
[392351867,1761393385599,193.66,0.00015901,2]
[392351870,1761393426222,268.51089923,0.00036673,30]
[392351877,1761393686646,255.69492192,0.0003667,30]
[392351992,1761394026061,211.34086981,0.0003667,30]
[392351996,1761394028687,200.0,0.0003667,30]
[392351998,1761394030801,466.54044407,0.0003667,30]
[392351999,1761394031327,500.0,0.0003667,30]
[392352000,1761394031752,452.59485111,0.0003667,30]
[392352011,1761394033270,500.0,0.0003667,30]
[392352012,1761394033956,500.0,0.0003667,30]
[392352013,1761394034669,500.0,0.0003667,30]
[392352015,1761394040663,520.60703777,0.0003667,30]
[392352046,1761394206265,-250.0,0.00017,2]
[392352047,1761394206290,-300.0,0.00019,2]
[392352048,1761394211634,1636.67,0.0002,2]
[392352103,1761394232003,-153.32,0.00021918,2]
[392352105,1761394232013,-193.66,0.00023852,2]
[392352107,1761394232022,-153.32,0.00030137,2]
[392352109,1761394232031,-15.52587336,0.00030602,30]
[392352112,1761394232056,-151.13412664,0.00030602,30]
[392352114,1761394232065,-360.75414035,0.00030646,2]
[392352117,1761394232075,-1085.11173301,0.00030747,2]
[392352130,1761394237645,-514.88826699,0.00030747,2]
[392352131,1761394237655,-30.357915,0.00030748,7]
[392352132,1761394237671,-119.642085,0.00030748,7]
[392352133,1761394237686,-150.0,0.00030748,7]
[392352134,1761394237696,-150.0,0.00030748,7]
[392352135,1761394237706,-150.0,0.00030748,7]
[392352136,1761394237715,-150.0,0.00030748,7]
[392352137,1761394237725,-150.0,0.00030748,7]
[392352138,1761394237734,-39.88413445,0.00030748,7]
[392352139,1761394237746,-110.11586555,0.00030748,7]
[392352140,1761394237756,-150.0,0.00030748,7]
[392352141,1761394237766,-82.06339596,0.00030748,7]
[392352142,1761394237871,-67.93660404,0.00030748,7]
[392352143,1761394237880,-150.0,0.00030748,7]
[392352144,1761394237890,-166.66,0.00031247,30]
[392352145,1761394237900,-150.0,0.00031317,7]
[392352146,1761394237909,-6752.04,0.00031385,7]
[392352147,1761394237919,-150.0,0.00031602,7]
[392352148,1761394237928,-314.93,0.00031609,2]
[392352149,1761394237937,-1597.0,0.000317,3]
[392352150,1761394237947,-809.4,0.00031768,2]
[392352151,1761394237956,-193.66,0.00031802,2]
[392352152,1761394237965,-250.0,0.00031802,2]
[392352153,1761394237974,-177.93,0.00031802,120]
[392352154,1761394237983,-1371.01,0.00031802,2]
[392352155,1761394237992,-150.0,0.00031887,7]
[392352156,1761394238002,-150.0,0.00031887,7]
[392352157,1761394238011,-150.0,0.00031887,7]
[392352158,1761394238020,-166.66,0.00031891,30]
[392352159,1761394238030,-746.44,0.00032148,2]
[392352160,1761394238039,-1000.0,0.00032213,2]
[392352161,1761394238048,-200.0,0.00032213,2]
[392352162,1761394238058,-5514.0,0.000323,5]
[392352163,1761394238067,-150.0,0.00032456,7]
[392352164,1761394238077,-150.0,0.00032456,7]
[392352165,1761394238086,-150.0,0.00032456,7]
[392352166,1761394238095,-150.0,0.00032456,7]
[392352167,1761394238104,-166.66,0.00032535,30]
[392352168,1761394238113,-1000.0,0.00032563,2]
[392352169,1761394238123,-1689.41944148,0.000327,7]
[392352170,1761394238132,-3120.29389254,0.00032821,2]
[392352171,1761394238142,-1000.0,0.00032837,2]
[392352172,1761394238151,-683.886,0.00032837,33]
[392352174,1761394238160,-500.0,0.00032876,9]
[392352175,1761394238170,-500.0,0.00032876,9]
[392352176,1761394238179,-507.08,0.00032876,9]
[392352177,1761394238188,-500.0,0.00032876,2]
[392352178,1761394238198,-707.38,0.00032876,2]
[392352179,1761394238207,-500.0,0.00032876,9]
[392352180,1761394238217,-500.0,0.00032876,9]
[392352181,1761394238226,-500.0,0.00032876,9]
[392352182,1761394238235,-500.0,0.00032876,2]
[392352183,1761394238244,-500.0,0.00032876,9]
[392352184,1761394238254,-500.0,0.00032876,9]
[392352185,1761394238263,-500.0,0.00032876,9]
[392352186,1761394238272,-500.0,0.00032876,9]
[392352187,1761394238281,-500.0,0.00032876,9]
[392352188,1761394238291,-500.0,0.00032876,9]
[392352189,1761394238300,-500.0,0.00032876,9]
[392352190,1761394238309,-500.0,0.00032876,9]
[392352191,1761394238318,-500.0,0.00032876,9]
[392352192,1761394238330,-500.0,0.00032876,9]
[392352193,1761394238339,-500.0,0.00032876,9]
[392352194,1761394238348,-500.0,0.00032876,9]
[392352195,1761394238357,-500.0,0.00032876,9]
[392352196,1761394238366,-500.0,0.00032876,9]
[392352197,1761394238376,-500.0,0.00032876,9]
[392352198,1761394238385,-500.0,0.00032876,9]
[392352199,1761394238395,-500.0,0.00032876,9]
[392352200,1761394238407,-500.0,0.00032876,9]
[392352201,1761394238417,-500.0,0.00032876,9]
[392352202,1761394238426,-500.0,0.00032876,9]
[392352203,1761394238435,-500.0,0.00032876,9]
[392352204,1761394238444,-500.0,0.00032876,9]
[392352205,1761394238453,-500.0,0.00032876,9]
[392352206,1761394238463,-500.0,0.00032876,9]
[392352207,1761394238472,-625.36,0.00032876,9]
[392352208,1761394238481,-500.0,0.00032876,9]
[392352209,1761394238490,-500.0,0.00032876,9]
[392352210,1761394238499,-500.0,0.00032876,9]
[392352211,1761394238508,-506.94425328,0.00032876,9]
[392352212,1761394238517,-500.0,0.00032876,9]
[392352213,1761394238526,-500.0,0.00032876,9]
[392352214,1761394238535,-500.0,0.00032876,9]
[392352215,1761394238544,-500.0,0.00032876,9]
[392352216,1761394238553,-626.05,0.00032876,9]
[392352217,1761394238563,-500.0,0.00032876,9]
[392352218,1761394238572,-500.0,0.00032876,9]
[392352219,1761394238585,-527.70383481,0.00032876,9]
[392352220,1761394238595,-500.0,0.00032876,9]
[392352221,1761394238603,-500.0,0.00032876,9]
[392352222,1761394238612,-612.48,0.00032876,9]
[392352223,1761394238622,-500.0,0.00032876,9]
[392352224,1761394238631,-4104.52,0.00032876,2]
[392352225,1761394238640,-500.0,0.00032876,9]
[392352226,1761394238650,-500.0,0.00032876,9]
[392352227,1761394238659,-500.0,0.00032876,9]
[392352228,1761394238668,-500.0,0.00032876,9]
[392352229,1761394238678,-685.58,0.00032876,9]
[392352230,1761394238687,-500.0,0.00032876,9]
[392352231,1761394238697,-500.0,0.00032876,9]
[392352232,1761394238706,-500.0,0.00032876,9]
[392352233,1761394238715,-500.0,0.00032876,9]
[392352234,1761394238724,-500.0,0.00032876,9]
[392352235,1761394238733,-500.0,0.00032876,9]
[392352236,1761394238743,-500.0,0.00032876,9]
[392352237,1761394238752,-500.0,0.00032876,9]
[392352238,1761394238761,-500.0,0.00032876,9]
[392352239,1761394238771,-469.9640024,0.00032876,9]
[392352240,1761394238805,-30.0359976,0.00032876,9]
[392352241,1761394238815,-526.85,0.00032876,9]
[392352242,1761394238824,-500.0,0.00032876,9]
[392352243,1761394238834,-500.0,0.00032876,9]
[392352244,1761394238844,-500.0,0.00032876,9]
[392352245,1761394238853,-147.58584308,0.00032876,9]
[392352246,1761394238865,-352.41415692,0.00032876,9]
[392352247,1761394238875,-500.0,0.00032876,9]
[392352248,1761394238884,-500.0,0.00032876,9]
[392352249,1761394238893,-500.0,0.00032876,9]
[392352250,1761394238904,-500.0,0.00032876,9]
[392352251,1761394238913,-153.68294989,0.00032876,9]
[392352252,1761394238925,-346.31705011,0.00032876,9]
[392352253,1761394238935,-500.0,0.00032876,9]
[392352254,1761394238944,-500.0,0.00032876,9]
[392352255,1761394238954,-500.0,0.00032876,9]
[392352256,1761394238963,-497.1506986,0.00032876,9]
[392352257,1761394239998,-2.8493014,0.00032876,9]
[392352258,1761394240007,-500.0,0.00032876,9]
[392352259,1761394240018,-386.5527653,0.00032876,9]
[392352260,1761394242876,-113.4472347,0.00032876,9]
[392352261,1761394242886,-500.0,0.00032876,9]
[392352262,1761394242895,-500.0,0.00032876,9]
[392352263,1761394242904,-500.0,0.00032876,9]
[392352264,1761394242913,-500.0,0.00032876,9]
[392352265,1761394242922,-500.0,0.00032876,9]
[392352266,1761394242931,-643.7236751,0.00032876,9]
[392352267,1761394242941,-500.0,0.00032876,9]
[392352268,1761394242950,-500.0,0.00032876,9]
[392352269,1761394242962,-226.87064215,0.00032876,2]
[392352276,1761394333154,151.0,0.0003667,30]
[392352277,1761394340552,247.61285918,0.0003667,30]
[392352298,1761394983068,-150.0,0.00032067,120]
[392352306,1761395108043,4346.731179,0.00015,2]
[392352307,1761395108084,44373.11260943,0.00015,2]
[392352386,1761395353089,-150.0,0.00029934,2]
[392352387,1761395353110,-150.0,0.00030058,7]
[392352388,1761395353130,-150.0,0.00030058,7]
[392352389,1761395353150,-150.0,0.00030058,7]
[392352390,1761395353169,-150.0,0.00030058,7]
[392352391,1761395353190,-63.22810895,0.00030058,7]
[392352445,1761395432092,-86.77189105,0.00030058,7]
[392352446,1761395432104,-150.0,0.00030058,7]
[392352447,1761395432114,-150.0,0.00030058,7]
[392352448,1761395432125,-150.0,0.00030058,7]
[392352449,1761395432134,-150.0,0.00030224,2]
[392352450,1761395432144,-104.37273104,0.00030337,3]
[392352451,1761395432155,-47.62726896,0.00030337,3]
[392352452,1761395432165,-150.0,0.00031171,7]
[392352454,1761395432174,-1429.05404633,0.00031498,2]
[392352471,1761395432410,-4049.05595367,0.00031498,2]
[392352473,1761395432419,-788.90896192,0.00031535,2]
[392352475,1761395432429,-290.39,0.00031554,30]
[392352476,1761395432438,-500.0,0.00031621,2]
[392352477,1761395432447,-936.83,0.00031686,2]
[392352478,1761395432456,-150.0,0.00031727,7]
[392352480,1761395432465,-150.0,0.00031727,7]
[392352481,1761395432474,-150.0,0.00031727,7]
[392352482,1761395432483,-150.0,0.00031727,7]
[392352483,1761395432493,-788.90896192,0.00031801,2]
[392352484,1761395432502,-1600.0,0.00031857,3]
[392352485,1761395432512,-342.53394934,0.00031858,2]
[392352486,1761395432521,-560.82,0.00031946,2]
[392352487,1761395432531,-164.78,0.0003203,2]
[392352488,1761395432540,-400.0,0.00032066,3]
[392352489,1761395432549,-666.0,0.00032067,3]
[392352490,1761395432558,-319.74,0.00032067,2]
[392352491,1761395432568,-200.0,0.00032067,2]
[392352492,1761395432577,-150.0,0.00032067,2]
[392352493,1761395432586,-853.0,0.00032097,2]
[392352494,1761395432595,-788.90896192,0.00032131,2]
[392352495,1761395432604,-153.03,0.00032258,2]
[392352496,1761395432613,-150.0,0.00032284,7]
[392352497,1761395432622,-788.90896192,0.00032484,2]
[392352498,1761395432631,-154.69191,0.0003255,2]
[392352499,1761395432640,-327.0,0.00032637,2]
[392352500,1761395432649,-957.5048081,0.00032672,2]
[392352573,1761395439906,-642.4951919,0.00032672,2]
[392352574,1761395439916,-137.4187209,0.00032672,2]
[392352575,1761395440172,-1060.5812791,0.00032672,2]
[392352576,1761395440182,-152.0,0.00032672,4]
[392352577,1761395440191,-3767.0,0.00032735,2]
[392352578,1761395440201,-500.0,0.00032768,2]
[392352579,1761395440307,-500.0,0.00032768,2]
[392352580,1761395440317,-436.35666302,0.00032768,2]
[392352581,1761395440326,-13398.62835495,0.00032769,2]
[392352582,1761395440336,-365.73507312,0.00032769,2]
[392352583,1761395440345,-8752.11772893,0.00032776,2]
[392352584,1761395440354,-176.76056241,0.00032776,6]
[392352585,1761395440363,-788.90896196,0.00032821,2]
[392352586,1761395440376,-184.65,0.00032856,2]
[392352587,1761395440386,-151.0,0.00032856,2]
[392352589,1761395440395,-151.0,0.00032856,2]
[392352590,1761395440404,-151.0,0.00032856,2]
[392352591,1761395440414,-151.0,0.00032856,2]
[392352592,1761395440423,-151.0,0.00032856,2]
[392352593,1761395440432,-151.0,0.00032856,2]
[392352594,1761395440442,-151.0,0.00032856,2]
[392352595,1761395440451,-151.0,0.00032856,2]
[392352596,1761395440460,-151.0,0.00032856,2]
[392352597,1761395440470,-151.0,0.00032856,2]
[392352598,1761395440479,-151.0,0.00032856,2]
[392352599,1761395440488,-151.0,0.00032856,2]
[392352600,1761395440497,-151.0,0.00032856,2]
[392352601,1761395440507,-151.0,0.00032856,2]
[392352602,1761395440517,-151.0,0.00032856,2]
[392352603,1761395440527,-151.0,0.00032856,2]
[392352604,1761395440535,-151.0,0.00032856,2]
[392352605,1761395440545,-151.0,0.00032856,2]
[392352606,1761395440554,-151.0,0.00032856,2]
[392352607,1761395440563,-151.0,0.00032856,2]
[392352608,1761395440575,-151.0,0.00032856,2]
[392352609,1761395440584,-151.0,0.00032856,2]
[392352610,1761395440593,-151.0,0.00032856,2]
[392352611,1761395440602,-151.0,0.00032856,2]
[392352612,1761395440611,-151.0,0.00032856,2]
[392352613,1761395440621,-151.0,0.00032856,2]
[392352614,1761395440631,-151.0,0.00032856,2]
[392352615,1761395440640,-151.0,0.00032856,2]
[392352616,1761395440650,-151.0,0.00032856,2]
[392352617,1761395440660,-151.0,0.00032856,2]
[392352618,1761395440669,-151.0,0.00032856,2]
[392352619,1761395440678,-151.0,0.00032856,2]
[392352620,1761395440687,-151.0,0.00032856,2]
[392352621,1761395440696,-151.0,0.00032856,2]
[392352622,1761395440707,-151.0,0.00032856,2]
[392352623,1761395440717,-151.0,0.00032856,2]
[392352624,1761395440726,-151.0,0.00032856,2]
[392352625,1761395440735,-151.0,0.00032856,2]
[392352626,1761395440744,-162.99,0.00032859,2]
[392352627,1761395440753,-95188.7978111,0.0003286,3]
[392352628,1761395440763,-151.0,0.00032863,14]
[392352629,1761395440772,-151.0,0.00032863,14]
[392352630,1761395440781,-475.30252455,0.00032865,2]
[392352631,1761395440790,-696.062,0.00032865,33]
[392352632,1761395440800,-3184.9,0.00032865,9]
[392352633,1761395440809,-231172.794684,0.00032866,3]
[392352634,1761395440819,-16254.4792487,0.00032866,3]
[392352635,1761395440828,-3184.9,0.00032869,9]
[392352636,1761395440839,-250000.0,0.0003287,2]
[392352637,1761395440849,-3190.1601295,0.00032871,2]
[392352638,1761395440858,-192.79377433,0.00032873,5]
[392352639,1761395440867,-500.0,0.00032873,5]
[392352640,1761395440876,-500.0,0.00032873,5]
[392352641,1761395440886,-500.0,0.00032873,5]
[392352642,1761395440895,-500.0,0.00032873,5]
[392352643,1761395440904,-500.0,0.00032875,9]
[392352644,1761395440916,-3184.9,0.00032875,9]
[392352645,1761395440925,-3184.9,0.00032875,9]
[392352646,1761395440935,-308.9430652,0.00032876,2]
[392352647,1761395440947,-11953.6390138,0.00032876,2]
[392352648,1761395441008,-13488.71230601,0.00032876,2]
[392352649,1761395441026,-2987.2,0.00032876,2]
[392352652,1761395443370,-203.59444881,0.00032876,2]
[392352811,1761395830850,301.554256,0.00036673,30]
[392352881,1761395935755,50000.0,0.00036672,34]
[392352891,1761395948315,50000.0,0.00036672,36]
[392352914,1761395980481,23000.0,0.00036672,36]
[392353092,1761396036443,174.75,0.00015921,2]
[392353093,1761396036897,174.75,0.00019106,2]
[392353095,1761396065401,2083.10424689,0.00024519,120]
[392353098,1761396099965,-174.75,0.0002229,2]
[392353461,1761396374462,139.03,0.00013699,2]
[392353462,1761396374483,17.81,0.00013699,2]
[392353525,1761396484174,162.0,0.00015,2]
[392353532,1761396558094,-156.84,0.00021404,2]
[392353533,1761396558115,-188.49628914,0.00021404,2]
[392353534,1761396558138,-174.75,0.00025474,2]
[392353535,1761396558159,-250.0,0.00028022,2]
[392353536,1761396558180,-174.75,0.00028658,2]
[392353537,1761396558202,-156.84,0.0002911,2]
[392353559,1761396632036,-300.0,0.00029563,2]
[392353560,1761396632050,-799.0,0.00029563,2]
[392353561,1761396632066,-200.0,0.00029563,2]
[392353562,1761396632077,-150.0,0.00029564,7]
[392353563,1761396632087,-150.0,0.00029564,7]
[392353564,1761396632098,-150.0,0.00029564,7]
[392353565,1761396632110,-150.0,0.00029564,7]
[392353566,1761396632121,-150.0,0.00029564,7]
[392353567,1761396632132,-152.10631874,0.00029564,7]
[392353568,1761396632144,-155.16858205,0.00029564,7]
[392353569,1761396632156,-150.0,0.00029564,7]
[392353570,1761396632168,-150.0,0.00029564,7]
[392353571,1761396632182,-150.0,0.00030386,7]
[392353572,1761396632192,-150.0,0.00030659,7]
[392353573,1761396632205,-150.0,0.00030659,7]
[392353574,1761396632217,-150.0,0.00031207,7]
[392353575,1761396632227,-150.0,0.00031207,7]
[392353576,1761396632238,-150.0,0.00031207,7]
[392353577,1761396632254,-150.0,0.00031207,7]
[392353578,1761396632266,-250.0,0.00031492,2]
[392353579,1761396632278,-1223.0,0.00031571,2]
[392353580,1761396632290,-150.0,0.00031754,7]
[392353581,1761396632301,-150.0,0.00031754,7]
[392353582,1761396632314,-1223.0,0.00031785,7]
[392353583,1761396632325,-2194.0,0.00031816,7]
[392353584,1761396632337,-174.75,0.00031843,2]
[392353585,1761396632348,-1806.76,0.00031845,2]
[392353586,1761396632360,-300.0,0.00031885,7]
[392353587,1761396632372,-150.0,0.00032028,7]
[392353588,1761396632384,-1000.0,0.000323,2]
[392353589,1761396632395,-621.54307734,0.00032347,2]
[392353590,1761396632406,-168.0,0.00032443,2]
[392353591,1761396632417,-250.0,0.00032519,2]
[392353592,1761396632433,-1000.0,0.00032565,2]
[392353593,1761396632444,-200.0,0.000326,11]
[392353594,1761396632455,-150.0,0.000326,2]
[392353595,1761396632466,-500.0,0.000327,11]
[392353596,1761396632478,-621.54307734,0.00032702,2]
[392353597,1761396632489,-4362.32726333,0.00032749,2]
[392353598,1761396632500,-18758.07969693,0.0003276,2]
[392353599,1761396632511,-159.78525393,0.0003276,15]
[392353600,1761396632522,-557.67886985,0.00032767,2]
[392353601,1761396632534,-303.46869788,0.00032767,6]
[392353602,1761396632550,-1000.0,0.00032799,2]
[392353603,1761396632562,-1392.96,0.000328,2]
[392353604,1761396632574,-556.849,0.000328,33]
[392353605,1761396632586,-800.0,0.000328,11]
[392353606,1761396632598,-1000.0,0.00032839,2]
[392353607,1761396632609,-151.0,0.00032846,2]
[392353608,1761396632618,-151.0,0.00032846,2]
[392353609,1761396632629,-151.0,0.00032846,2]
[392353610,1761396632639,-151.0,0.00032846,2]
[392353611,1761396632650,-151.0,0.00032846,2]
[392353612,1761396632662,-151.0,0.00032846,2]
[392353613,1761396632676,-151.0,0.00032846,2]
[392353614,1761396632686,-151.0,0.00032846,2]
[392353615,1761396632696,-151.0,0.00032846,2]
[392353616,1761396632706,-151.0,0.00032846,2]
[392353617,1761396632715,-151.0,0.00032846,2]
[392353618,1761396632726,-151.0,0.00032846,2]
[392353619,1761396632736,-151.0,0.00032846,2]
[392353620,1761396632747,-151.0,0.00032846,2]
[392353621,1761396632759,-151.0,0.00032846,2]
[392353622,1761396632770,-151.0,0.00032846,2]
[392353623,1761396632779,-151.0,0.00032846,2]
[392353624,1761396632789,-151.0,0.00032846,2]
[392353625,1761396632811,-151.0,0.00032846,2]
[392353626,1761396632822,-151.0,0.00032846,2]
[392353627,1761396632839,-151.0,0.00032846,2]
[392353628,1761396632850,-151.0,0.00032846,2]
[392353629,1761396632862,-151.0,0.00032846,2]
[392353630,1761396632888,-151.0,0.00032846,2]
[392353631,1761396632900,-151.0,0.00032846,2]
[392353632,1761396632912,-500.0,0.00032846,2]
[392353633,1761396632924,-226.92316193,0.00032846,2]
[392353634,1761396632936,-208.89623501,0.00032846,2]
[392353635,1761396632949,-270.24890559,0.00032846,2]
[392353636,1761396632962,-130077.71717,0.00032847,3]
[392353637,1761396632976,-150.0,0.00032849,7]
[392353638,1761396632989,-150.0,0.00032849,7]
[392353639,1761396633002,-150.00000001,0.00032849,7]
[392353640,1761396633015,-150.0,0.00032849,7]
[392353641,1761396633027,-166.80831812,0.00032849,7]
[392353642,1761396633039,-157.24254794,0.00032849,7]